bitfinex/quotes_ETHUSD_20250422
["timestamp","ask_amount","ask_price","bid_price","bid_amount"]
[1745322058951,7.19,1634.8,1633.9,3.0]
[1745322059154,0.61160224,1635.0,1633.9,3.0]
[1745322059155,6.72796854,1635.0,1634.2,3.80383091]
[1745322059382,6.11526321,1635.3,1634.7,3.80383091]
[1745322059589,7.19,1635.7,1634.8,0.06115859]
[1745322059752,7.19,1635.7,1634.5,0.75]
[1745322059753,6.11628038,1635.0,1634.5,4.55383091]
[1745322059952,6.11628038,1635.0,1633.8,3.0]
[1745322059953,6.11824751,1634.5,1633.8,3.0]
[1745322060294,6.11900487,1634.3,1633.7,1.20538309]
[1745322060497,7.19,1634.6,1633.7,0.75]
[1745322060697,6.11845325,1634.4,1633.7,0.75]
[1745322060999,3.0,1634.5,1633.7,0.75]
[1745322061000,6.11944522,1634.2,1633.7,0.75]
[1745322061210,6.11976091,1634.1,1633.7,0.75]
[1745322061571,6.11976091,1634.1,1633.8,0.06119997]
[1745322061896,6.73157376,1634.1,1633.9,0.22654864]
[1745322062212,6.12091656,1633.8,1633.4,3.80383091]
[1745322062370,13.91957376,1634.1,1633.5,0.238744]
[1745322062722,6.12075365,1633.8,1633.0,10.99383091]
[1745322062863,6.1222088,1633.4,1633.0,10.99383091]
[1745322063064,6.12240809,1633.4,1633.0,10.99383091]
[1745322063264,6.12240809,1633.4,1633.0,7.19]
[1745322063674,6.12240809,1633.4,1632.9,0.75]
[1745322063876,6.12240809,1633.4,1632.9,1.81870626]
[1745322064614,6.12379652,1633.0,1632.6,0.75]
[1745322064770,6.12422006,1632.9,1632.5,3.81285706]
[1745322065099,0.7595,1633.7,1632.8,3.81285706]
[1745322065278,6.12294127,1633.3,1632.8,3.81285706]
[1745322065475,6.73502552,1633.3,1632.8,9.9370544]
[1745322065868,6.12358934,1633.1,1632.6,6.12500173]
[1745322066107,6.12318658,1633.2,1632.6,6.12500173]
[1745322066397,6.12189985,1633.5,1632.6,6.12500173]
[1745322066398,6.12202274,1633.5,1632.9,6.12380566]
[1745322066597,6.12202274,1633.5,1633.0,0.06122479]
[1745322066929,0.61220227,1633.4,1633.0,0.06122479]
[1745322067227,6.12303029,1633.2,1632.7,6.12471316]
[1745322067369,6.12213056,1633.5,1633.0,6.12339861]
[1745322067567,6.12234705,1633.4,1632.8,11.19300731]
[1745322067872,6.12271324,1633.3,1632.8,17.31714642]
[1745322068068,6.12271324,1633.3,1632.9,6.31521382]
[1745322068272,6.1225864,1633.3,1632.9,6.31509338]
[1745322068776,7.34707888,1633.3,1633.0,0.19115025]
[1745322068981,7.34720237,1633.3,1633.0,3.19115025]
[1745322069298,12.24558451,1633.3,1633.0,3.0]
[1745322069486,6.12270989,1633.3,1633.0,3.0]
[1745322069878,12.24559994,1633.3,1633.0,3.0]
[1745322070068,6.12295994,1633.2,1633.0,3.0]
[1745322070269,6.12279351,1633.3,1633.0,3.0]
[1745322070469,6.12279351,1633.3,1633.1,0.19115735]
[1745322070970,6.12279351,1633.3,1633.0,3.0]
[1745322071413,6.12279351,1633.3,1633.1,0.19115104]
[1745322071977,6.12279351,1633.3,1633.0,3.0]
[1745322071978,6.12231538,1633.4,1633.2,0.19115104]
[1745322072474,6.1220117,1633.5,1633.2,0.19115104]
[1745322072668,6.12219909,1633.4,1633.3,0.19115104]
[1745322074241,6.12274669,1633.3,1633.0,0.06123263]
[1745322074414,6.12235297,1633.4,1633.0,6.18481065]
[1745322074573,6.12268254,1633.3,1633.1,0.52636329]
[1745322074773,6.12221172,1633.4,1633.1,0.52636329]
[1745322075114,14.64322674,1633.5,1633.2,0.19114611]
[1745322075313,7.58663627,1633.4,1633.3,0.19114611]
[1745322075867,7.58663627,1633.4,1632.7,6.12477274]
[1745322075868,6.12375693,1633.0,1632.7,6.12477274]
[1745322076176,6.12375693,1633.0,1632.8,0.40008413]
[1745322076482,6.12407373,1632.9,1632.8,0.40008413]
[1745322076685,6.12407373,1632.9,1632.8,0.20889822]
[1745322076895,8.03936427,1632.9,1632.8,0.54481649]
[1745322077094,8.03936427,1632.9,1632.8,0.52712522]
[1745322077719,6.12598439,1632.4,1632.0,9.9400274]
[1745322077871,6.12444879,1632.8,1632.0,3.81285706]
[1745322078078,6.12596806,1632.4,1632.1,0.19322589]
[1745322078819,6.12544624,1632.6,1632.2,6.12654665]
[1745322078983,6.12576369,1632.5,1632.3,4.00578855]
[1745322079182,6.12535977,1632.6,1632.3,4.00578855]
[1745322079720,8.03962914,1632.9,1632.4,6.18706318]
[1745322080014,6.12466964,1632.8,1632.4,12.3128365]
[1745322080217,13.02909936,1633.0,1632.6,3.81285706]
[1745322080381,6.90509419,1633.0,1632.7,0.19234291]
[1745322080581,19.43911369,1633.1,1632.7,0.19234291]
[1745322080782,13.31544523,1633.1,1632.7,6.31704699]
[1745322080983,13.31544523,1633.1,1632.7,6.31693546]
[1745322081185,6.90393271,1633.3,1632.9,9.93678006]
[1745322081412,6.12300993,1633.2,1632.9,9.93678006]
[1745322081800,27.76869406,1633.4,1633.0,6.31545717]
[1745322082082,6.12270352,1633.3,1633.0,0.19190166]
[1745322082283,6.12275077,1633.3,1633.0,0.19190166]
[1745322082478,6.12307138,1633.2,1633.0,0.19190166]
[1745322083015,6.12295117,1633.2,1633.0,0.19190166]
[1745322083721,6.12332374,1633.1,1633.0,0.19190166]
[1745322084284,6.12332374,1633.1,1632.8,6.1856342]
[1745322084481,6.12332374,1633.1,1632.9,0.19202161]
[1745322084888,6.12332374,1633.1,1632.8,0.06123845]
[1745322085084,6.12369871,1633.0,1632.9,0.19202161]
[1745322085292,6.12444879,1632.8,1632.5,3.79596351]
[1745322085533,6.12444879,1632.8,1632.6,0.19246291]
[1745322085832,6.12444879,1632.8,1632.7,0.19120014]
[1745322086333,6.12425034,1632.9,1632.7,4.18285574]
[1745322086699,6.12444879,1632.8,1632.7,3.9916556]
[1745322087200,6.12425034,1632.9,1632.7,3.9916556]
[1745322087430,12.24860091,1632.9,1632.7,3.9916556]
[1745322087608,6.12444879,1632.8,1632.7,3.9916556]
[1745322087808,12.24861609,1632.9,1632.7,3.9916556]
[1745322088010,6.12444879,1632.8,1632.7,3.9916556]
[1745322088933,6.12444879,1632.8,1632.7,0.38689315]
[1745322090601,6.12444879,1632.8,1632.7,0.72672342]
[1745322091433,6.12425034,1632.9,1632.7,0.72672342]
[1745322091636,6.12407373,1632.9,1632.8,3.79596351]
[1745322091839,6.12345725,1633.1,1632.8,3.79596351]
[1745322092133,6.12397406,1633.0,1632.8,4.33768687]
[1745322092443,12.24795656,1633.0,1632.8,4.33768687]
[1745322092739,6.12407373,1632.9,1632.8,0.54172336]
[1745322093031,6.12407373,1632.9,1632.8,0.20189309]
[1745322093433,6.12407373,1632.9,1632.6,9.92115818]
[1745322093653,6.12407373,1632.9,1632.8,0.20069667]
[1745322093851,6.12444879,1632.8,1632.7,0.39206176]
[1745322094140,7.96172668,1632.8,1632.7,0.191218]
[1745322094501,6.12628828,1632.4,1632.0,10.72472628]
[1745322094700,12.25251883,1632.4,1632.0,10.72469849]
[1745322094902,0.7812,1632.6,1632.1,0.34032912]
[1745322095103,6.12604315,1632.4,1632.1,0.34032912]
[1745322095346,13.03209673,1632.6,1632.2,3.79596351]
[1745322095511,6.90656604,1632.6,1632.3,0.19125061]
[1745322096020,6.12505713,1632.7,1632.4,3.79596351]
[1745322096636,6.12512803,1632.7,1632.4,3.79596351]
[1745322096833,6.12466378,1632.8,1632.5,0.53157973]
[1745322097143,6.12494772,1632.7,1632.5,0.53157973]
[1745322097340,6.12466378,1632.8,1632.5,6.65702446]
[1745322097508,6.12466378,1632.8,1632.5,0.53157973]
[1745322097710,6.12486391,1632.7,1632.5,0.53157973]
[1745322098009,6.12486391,1632.7,1632.6,0.53157973]
[1745322098236,2.00599566,1633.0,1632.6,0.53157973]
[1745322098422,6.12432265,1632.9,1632.6,0.53157973]
[1745322098632,6.12432265,1632.9,1632.7,0.34032912]
[1745322098824,6.12450207,1632.8,1632.7,0.34032912]
[1745322099040,6.12450207,1632.8,1632.7,0.53157973]
[1745322103331,7.96181011,1632.8,1632.7,0.53157973]
[1745322103533,6.12450207,1632.8,1632.7,0.53157973]
[1745322104341,6.12450207,1632.8,1632.7,0.34032912]
[1745322105405,6.12450207,1632.8,1632.7,0.52985335]
[1745322106012,6.92910207,1632.8,1632.7,0.52985335]
[1745322106506,6.92910207,1632.8,1632.7,0.34032912]
[1745322106707,8.84686368,1632.8,1632.7,0.34032912]
[1745322107107,6.12615217,1632.4,1632.1,4.59226351]
[1745322107335,6.1263772,1632.3,1632.2,0.19222008]
[1745322107537,6.1263772,1632.3,1632.1,4.59226351]
[1745322107738,12.25243761,1632.4,1632.1,4.59226351]
[1745322107939,12.25241443,1632.4,1632.2,0.38347389]
[1745322108146,12.25241692,1632.4,1632.2,0.38347389]
[1745322108310,6.12615217,1632.4,1632.3,0.34067795]
[1745322109046,6.12615217,1632.4,1632.3,0.72400467]
[1745322109847,6.12522428,1632.6,1632.3,0.72400467]
[1745322110152,6.12560446,1632.5,1632.4,0.19125381]
[1745322110512,6.12522428,1632.6,1632.4,0.36753029]
[1745322110744,12.25077565,1632.6,1632.4,0.36753029]
[1745322110939,6.12522428,1632.6,1632.5,0.34067795]
[1745322111127,6.12500728,1632.7,1632.5,0.34067795]
[1745322111430,6.12519906,1632.6,1632.5,0.5168073]
[1745322111788,7.35021969,1632.6,1632.5,0.5168073]
[1745322111916,7.35021969,1632.6,1632.5,0.70806111]
[1745322112945,7.35021969,1632.6,1632.5,0.53193176]
[1745322113110,7.35021969,1632.6,1632.5,0.70760078]
[1745322113544,6.12477454,1632.8,1632.5,0.70760078]
[1745322113850,6.12457563,1632.8,1632.6,0.19125381]
[1745322114022,6.12482391,1632.7,1632.6,0.19125381]
[1745322114345,6.12482391,1632.7,1632.6,0.53193176]
[1745322114711,6.92942391,1632.7,1632.6,0.53193176]
[1745322114915,8.84728724,1632.7,1632.6,0.53193176]
[1745322115731,8.84728724,1632.7,1632.6,0.19125381]
[1745322115933,8.84728724,1632.7,1632.1,0.7963]
[1745322115934,6.1260698,1632.4,1632.1,0.7963]
[1745322116159,6.12642461,1632.3,1632.1,0.7963]
[1745322116457,6.1260698,1632.4,1632.2,0.34086639]
[1745322116853,6.1260698,1632.4,1632.3,0.34086639]
[1745322117164,6.12579803,1632.5,1632.3,0.53211596]
[1745322117461,12.25163444,1632.5,1632.3,0.53211596]
[1745322117672,6.12594952,1632.4,1632.3,0.53211596]
[1745322117956,6.12641342,1632.3,1631.9,10.73378521]
[1745322118125,6.12641342,1632.3,1632.0,6.18871181]
[1745322118329,6.12641342,1632.3,1632.1,0.34091272]
[1745322118829,6.12641342,1632.3,1632.2,0.1912577]
[1745322119169,7.35164971,1632.3,1632.2,0.53217042]
[1745322120063,7.35164971,1632.3,1632.2,0.34091272]
[1745322120466,7.35164971,1632.3,1632.2,0.51803301]
[1745322121866,7.35164971,1632.3,1632.2,0.70930897]
[1745322124080,8.12714971,1632.3,1632.2,0.51803301]
[1745322124453,8.12714971,1632.3,1632.2,0.17712029]
[1745322124780,6.12803943,1631.9,1631.6,20.9922]
[1745322124942,6.12803943,1631.9,1631.6,0.8102]
[1745322125143,6.12803943,1631.9,1631.7,0.53212961]
[1745322125756,6.12820198,1631.8,1631.7,0.53212961]
[1745322127285,6.12820198,1631.8,1631.7,0.34082469]
[1745322128886,6.12820198,1631.8,1631.3,0.034]
[1745322128887,6.12935035,1631.5,1631.3,0.034]
[1745322129193,6.12970454,1631.4,1631.3,0.034]
[1745322129347,7.35561003,1631.4,1631.3,0.034]
[1745322129751,8.13111003,1631.4,1631.3,0.034]
[1745322129943,6.1304561,1631.2,1631.1,1e-08]
[1745322131064,6.1304561,1631.2,1631.1,0.12627104]
[1745322131269,6.1304561,1631.2,1631.1,1e-08]
[1745322131443,6.1304561,1631.2,1629.7,18.96680934]
[1745322131445,0.55,1630.6,1629.7,0.3971835]
[1745322131647,0.7755,1630.7,1629.7,6.53326251]
[1745322131648,0.7755,1630.3,1629.7,6.53326251]
[1745322131879,3.54746327,1631.1,1629.7,6.53326251]
[1745322131880,6.1344879,1630.2,1629.8,1.00168042]
[1745322132052,6.1344879,1630.2,1629.8,1.06302731]
[1745322132053,6.13474145,1630.1,1629.8,1.06302731]
[1745322132247,6.13474145,1630.1,1629.8,1.00168042]
[1745322132450,0.06132325,1630.2,1629.8,7.91468042]
[1745322132644,6.19578372,1630.2,1629.8,14.05039974]
[1745322132848,12.33030789,1630.2,1629.8,10.41795542]
[1745322133063,6.13503249,1630.0,1629.8,0.8102]
[1745322133354,6.13503249,1630.0,1629.7,1.05050975]
[1745322133355,6.13572217,1629.8,1629.7,0.3971835]
[1745322133575,6.13536092,1629.9,1629.7,0.3971835]
[1745322134959,6.19643559,1630.0,1629.7,0.3971835]
[1745322134960,0.06132325,1630.0,1629.7,0.3971835]
[1745322135162,6.19606208,1630.1,1629.7,6.53312448]
[1745322136079,12.33095548,1630.1,1629.7,0.3971835]
[1745322136275,13.56403234,1630.1,1629.7,0.3971835]
[1745322136477,6.13572217,1629.8,1629.7,0.3971835]
[1745322136752,6.19704542,1629.8,1629.7,0.3971835]
[1745322137080,6.19704542,1629.8,1629.7,0.51139792]
[1745322137467,6.19704542,1629.8,1629.7,0.3971835]
[1745322137687,7.43030022,1629.8,1629.7,0.3971835]
[1745322137889,7.43030022,1629.8,1629.7,0.52900546]
[1745322138086,0.06132325,1629.8,1629.7,0.52900546]
[1745322138290,6.19682582,1629.9,1629.7,0.52900546]
[1745322138506,6.08,1630.0,1629.7,0.52900546]
[1745322138663,6.08,1630.0,1629.7,6.66485477]
[1745322139099,6.08,1630.0,1629.7,6.72620926]
[1745322139453,6.13536189,1629.9,1629.7,0.59035995]
[1745322139653,6.19668514,1629.9,1629.7,0.52900546]
[1745322139968,12.33230786,1629.9,1629.7,0.52900546]
[1745322140169,6.19668514,1629.9,1629.7,0.52900546]
[1745322140578,6.13572217,1629.8,1629.7,0.52900546]
[1745322140970,6.19704542,1629.8,1629.7,0.52900546]
[1745322142472,0.06132325,1629.8,1629.7,0.52900546]
[1745322142685,12.82704542,1629.8,1629.7,0.52900546]
[1745322142877,12.76572217,1629.8,1629.7,0.52900546]
[1745322143167,14.65582978,1629.8,1629.7,0.3971835]
[1745322143383,6.13609866,1629.7,1628.9,3.8102]
[1745322143682,6.13736127,1629.4,1629.1,3.0]
[1745322143901,6.19911553,1629.3,1629.1,3.0]
[1745322144054,6.19911553,1629.3,1628.9,6.94913111]
[1745322144055,6.19911553,1629.3,1629.2,0.12781567]
[1745322144258,6.13823686,1629.2,1628.9,0.8102]
[1745322144559,6.13823686,1629.2,1629.0,0.12811118]
[1745322145083,7.37146029,1629.3,1629.0,0.12811118]
[1745322145383,13.57069645,1629.3,1629.0,0.12811118]
[1745322145589,13.5093732,1629.3,1629.0,0.12811118]
[1745322145797,6.19931656,1629.2,1629.0,0.12811118]
[1745322146006,6.19931656,1629.2,1629.0,6.26660771]
[1745322146007,0.06132325,1629.2,1629.0,6.26660771]
[1745322146307,0.06132325,1629.3,1629.0,6.26660771]
[1745322146512,0.06132325,1629.3,1629.0,12.40520193]
[1745322146674,0.68119245,1629.3,1629.0,0.12811118]
[1745322146873,12.33710048,1629.3,1628.9,6.13898176]
[1745322147093,6.19916554,1629.3,1629.0,0.12552157]
[1745322147376,12.33707965,1629.3,1629.0,0.12552157]
[1745322147573,6.19916554,1629.3,1629.0,0.12552157]
[1745322147767,6.13800874,1629.2,1629.0,0.12552157]
[1745322148010,6.19968185,1629.1,1629.0,0.12552157]
[1745322148233,6.19968185,1629.1,1628.6,19.28007192]
[1745322148234,7.1398804,1629.1,1628.6,19.28007192]
[1745322148386,6.13887208,1629.0,1628.7,6.13985734]
[1745322148898,0.06132325,1629.0,1628.6,6.140046]
[1745322149072,6.20022305,1629.0,1628.6,6.14001713]
[1745322149273,0.06132325,1629.0,1628.4,13.14181162]
[1745322149478,6.13932861,1628.9,1628.5,6.14043346]
[1745322149708,0.06132325,1628.8,1628.5,6.14061647]
[1745322149908,12.27807609,1629.0,1628.6,6.14003801]
[1745322150217,0.06132325,1628.9,1628.6,6.14003801]
[1745322150434,0.06132325,1628.9,1628.7,0.12808694]
[1745322150635,6.89748919,1628.8,1628.7,0.12808694]
[1745322150797,6.13991597,1628.7,1628.3,6.14124537]
[1745322151110,0.06132325,1628.6,1628.4,6.14087749]
[1745322151290,6.14037772,1628.6,1628.2,0.8267]
[1745322151486,0.06132325,1628.5,1628.2,6.96818831]
[1745322151982,6.20208796,1628.5,1628.2,6.96845129]
[1745322152315,6.14121847,1628.4,1628.1,0.3971835]
[1745322152511,7.37504975,1628.5,1628.1,6.539299]
[1745322152686,6.20244198,1628.4,1628.1,0.3971835]
[1745322152896,6.14051165,1628.6,1628.2,6.14161892]
[1745322153103,0.06132325,1628.5,1628.2,6.14161892]
[1745322153306,6.20197694,1628.5,1628.1,6.53929658]
[1745322153506,6.14103689,1628.4,1628.1,6.53920632]
[1745322153710,0.06132325,1628.3,1628.1,0.3971835]
[1745322153889,6.20285949,1628.3,1628.1,0.3971835]
[1745322154093,6.14175162,1628.2,1628.1,0.3971835]
[1745322154342,7.37621273,1628.2,1628.1,0.3971835]
[1745322154819,6.13999844,1628.7,1628.3,6.14102658]
[1745322155000,6.20132169,1628.7,1628.3,6.14102658]
[1745322155206,6.20132169,1628.7,1628.4,6.14098645]
[1745322155434,6.20132169,1628.7,1628.3,6.14102658]
[1745322155821,6.20132169,1628.7,1628.3,6.14112996]
[1745322156118,0.06132325,1628.7,1628.4,6.14086203]
[1745322156307,6.20102189,1628.8,1628.4,12.28167829]
[1745322156636,6.20102189,1628.8,1628.5,0.33795041]
[1745322156873,0.06132325,1628.8,1628.5,0.33795041]
[1745322157225,0.06132325,1628.8,1628.6,6.14010994]
[1745322157735,0.06132325,1628.9,1628.6,6.1399895]
[1745322157939,6.20044297,1628.9,1628.6,6.14018388]
[1745322158122,6.20044297,1628.9,1628.7,0.33835404]
[1745322158524,0.06132325,1628.9,1628.7,0.33835404]
[1745322159540,0.06132325,1628.9,1628.8,0.33835404]
[1745322160128,6.20043553,1628.9,1628.8,0.33835404]
[1745322160315,1.29526111,1628.9,1628.8,0.33835404]
[1745322160656,7.43437339,1628.9,1628.8,0.33835404]
[1745322160856,1.29526111,1628.9,1628.8,0.33835404]
[1745322161821,6.13986615,1628.7,1628.1,0.3971835]
[1745322162021,6.81577563,1628.6,1628.2,6.1415378]
[1745322162241,0.67530986,1628.6,1628.3,6.14134953]
[1745322162439,0.06132325,1628.6,1628.3,6.14127389]
[1745322162669,0.06132325,1628.6,1628.4,0.30594702]
[1745322163027,6.20129034,1628.7,1628.4,0.30594702]
[1745322163331,6.14035494,1628.6,1628.4,0.30594702]
[1745322163529,0.06132325,1628.5,1628.4,0.1142307]
[1745322163761,6.14175162,1628.2,1628.1,0.3971835]
[1745322163961,6.20307487,1628.2,1628.1,0.3971835]
[1745322164760,7.57437487,1628.2,1628.1,0.3971835]
[1745322165433,7.02437487,1628.2,1628.1,0.3971835]
[1745322166742,0.06132325,1628.2,1628.1,0.3971835]
[1745322166937,0.06132325,1628.2,1628.1,0.5889397]
[1745322167271,6.14175162,1628.2,1628.1,0.5889397]
[1745322167875,6.14175162,1628.2,1628.1,0.3971835]
[1745322168243,6.96305162,1628.2,1628.1,0.3971835]
[1745322168546,8.27964417,1628.2,1628.1,0.3971835]
[1745322168867,8.34096742,1628.2,1628.1,0.3971835]
[1745322173338,8.34096742,1628.2,1626.9,6.14665929]
[1745322173339,0.55,1627.8,1626.9,6.14665929]
[1745322173547,0.06132325,1627.7,1627.3,0.7729]
[1745322173729,0.06132325,1627.7,1627.4,0.11687638]
[1745322173938,0.06132325,1627.7,1627.4,0.19182969]
[1745322174266,0.06132325,1627.7,1627.5,0.12305663]
[1745322174675,0.32038418,1627.7,1627.5,0.12305663]
[1745322174975,0.06132325,1627.6,1627.5,0.76900652]
[1745322175175,0.32038418,1627.7,1627.6,6.14401572]
[1745322175333,0.06132325,1627.9,1627.6,6.1438402]
[1745322175532,0.06132325,1627.9,1627.7,0.12455043]
[1745322175761,0.06132325,1627.9,1627.6,6.1437627]
[1745322175973,0.06132325,1627.9,1627.7,0.12460487]
[1745322176471,0.06132325,1627.9,1627.6,6.14398705]
[1745322176636,0.06132325,1627.9,1627.8,0.12448404]
[1745322176828,0.06132325,1627.9,1627.6,6.14398705]
[1745322176829,0.06132325,1627.9,1627.7,0.12463209]
[1745322177070,0.06132325,1627.9,1627.8,0.31631373]
[1745322177239,6.20420671,1627.9,1627.8,0.31631373]
[1745322177439,0.06132325,1627.9,1627.8,0.31631373]
[1745322177840,6.20394779,1628.0,1627.8,0.31631373]
[1745322178434,0.06132325,1628.0,1627.8,0.31631373]
[1745322178650,0.06132325,1628.0,1627.8,6.45951608]
[1745322178862,6.20356513,1628.1,1627.8,0.31631373]
[1745322179065,0.06132325,1628.1,1627.9,0.19182969]
[1745322179260,6.20357431,1628.1,1627.9,0.19182969]
[1745322179453,6.20357431,1628.1,1628.0,0.12416079]
[1745322179838,0.06132325,1628.1,1628.0,0.12416079]
[1745322180039,0.06132325,1628.1,1628.0,0.31599048]
[1745322180267,6.20345211,1628.1,1628.0,0.31599048]
[1745322181775,0.06132325,1628.1,1628.0,0.31599048]
[1745322182074,0.32032814,1628.4,1628.1,0.7729]
[1745322182371,0.32032814,1628.4,1628.3,6.14137443]
[1745322182567,0.32032814,1628.4,1628.3,6.26098219]
[1745322183156,0.32032814,1628.4,1628.3,6.45281188]
[1745322183745,0.32032814,1628.4,1628.3,7.22571188]
[1745322183952,0.32032814,1628.4,1628.3,9.55619326]
[1745322184977,7.37320783,1628.9,1628.5,6.14041016]
[1745322185277,6.13926997,1628.9,1628.5,6.14041016]
[1745322185472,6.13926997,1628.9,1628.6,0.11506059]
[1745322185873,12.53912377,1629.0,1628.6,6.25516618]
[1745322186172,12.59819856,1629.0,1628.6,6.14005664]
[1745322186379,6.45912377,1629.0,1628.6,6.14005664]
[1745322186676,7.80102338,1629.0,1628.6,6.14000068]
[1745322188154,7.80102338,1629.0,1628.7,6.13980725]
[1745322189377,7.80102338,1629.0,1628.5,6.14041411]
[1745322189549,7.80102338,1629.0,1628.6,0.19167181]
[1745322189882,7.80102338,1629.0,1628.6,6.33163237]
[1745322190285,0.78010234,1628.9,1628.6,0.19167181]
[1745322190579,6.13981161,1628.8,1628.6,0.19167181]
[1745322190748,6.13981161,1628.8,1628.4,19.10763515]
[1745322191152,6.13981161,1628.8,1628.5,6.1406091]
[1745322191481,12.21897742,1629.0,1628.6,6.14011116]
[1745322192382,6.08,1629.0,1628.7,6.13973623]
[1745322193371,6.08,1629.0,1628.7,12.27941112]
[1745322193696,6.08,1629.0,1628.7,6.13970401]
[1745322194585,12.21888657,1629.0,1628.6,6.14022035]
[1745322194751,14.13676602,1629.0,1628.6,6.14022035]
[1745322195186,20.27583843,1629.0,1628.6,6.14022035]
[1745322195469,14.13676602,1629.0,1628.6,12.28025407]
[1745322195672,14.13676602,1629.0,1628.7,6.13986212]
[1745322195872,6.13985922,1628.8,1628.5,6.824]
[1745322196083,6.14000539,1628.7,1628.5,6.824]
[1745322196268,6.13985922,1628.8,1628.5,12.96451513]
[1745322196455,6.13952488,1628.8,1628.5,6.14051513]
[1745322197580,7.55294381,1628.9,1628.5,6.14042177]
[1745322197950,6.13954302,1628.8,1628.5,6.14042177]
[1745322198363,7.55294381,1628.9,1628.5,6.14042177]
[1745322198584,13.69235317,1628.9,1628.5,6.14042177]
[1745322199182,13.69235939,1628.9,1628.5,6.14042177]
[1745322199398,1.36923594,1628.8,1628.3,0.7729]
[1745322199576,6.13986615,1628.7,1628.4,0.19168656]
[1745322199778,6.14041759,1628.6,1628.4,0.19168656]
[1745322200594,6.14003116,1628.7,1628.4,0.19168656]
[1745322200957,12.28020421,1628.7,1628.3,13.73711481]
[1745322201157,6.14049458,1628.6,1628.3,0.7729]
[1745322201358,6.14049458,1628.6,1628.2,12.75149537]
[1745322201558,6.14049458,1628.6,1628.2,18.89303282]
[1745322201784,6.14049458,1628.6,1628.2,12.75149537]
[1745322201985,6.14049458,1628.6,1628.1,6.96489584]
[1745322201986,6.14130014,1628.4,1628.1,0.823]
[1745322202389,6.14130014,1628.4,1628.1,6.96500389]
[1745322202797,6.14130014,1628.4,1628.0,32.53166829]
[1745322203093,6.14156417,1628.3,1628.0,20.247]
[1745322203461,6.14137443,1628.3,1628.0,20.247]
[1745322203676,6.14190211,1628.2,1628.0,20.247]
[1745322204055,6.14337934,1627.8,1627.4,6.96746946]
[1745322204255,6.14306511,1627.9,1627.5,6.14422704]
[1745322204493,6.14306511,1627.9,1627.6,0.19178977]
[1745322205190,12.28629793,1627.9,1627.6,0.19178977]
[1745322205398,6.14306511,1627.9,1627.6,0.19178977]
[1745322205775,6.14306511,1627.9,1627.5,12.28829566]
[1745322206007,6.14328772,1627.8,1627.5,6.14413918]
[1745322206181,6.14306511,1627.9,1627.5,6.14413918]
[1745322206385,13.10748645,1627.9,1627.5,6.14413918]
[1745322206635,6.14330227,1627.8,1627.5,6.14413918]
[1745322206898,2.13194864,1627.9,1627.5,6.14416217]
[1745322207106,0.8212,1627.9,1627.5,6.14416217]
[1745322207281,0.8212,1627.9,1627.6,0.19178445]
[1745322207598,6.14197332,1628.2,1627.8,6.14305367]
[1745322207803,6.14214241,1628.1,1627.8,6.14305367]
[1745322208105,6.14214241,1628.1,1627.6,0.19178445]
[1745322208106,6.14363826,1627.7,1627.6,0.19178445]
[1745322208268,6.14363826,1627.7,1626.9,0.8093]
[1745322208269,6.96534816,1627.6,1627.2,6.14534867]
[1745322208465,6.14439521,1627.5,1627.1,6.14565768]
[1745322208703,6.96534816,1627.6,1627.1,6.14565768]
[1745322209001,6.96524744,1627.6,1627.2,6.14534846]
[1745322209306,0.8212,1627.6,1627.3,6.33695167]
[1745322209599,6.14376888,1627.7,1627.3,7.58518168]
[1745322209766,6.14376888,1627.7,1627.3,6.33695167]
[1745322209967,0.8212,1627.8,1627.3,0.19182581]
[1745322210168,6.14427318,1627.6,1627.3,0.19182581]
[1745322210395,12.28859999,1627.6,1627.2,6.14537535]
[1745322210802,6.14455127,1627.5,1627.2,6.14547066]
[1745322211204,6.14455127,1627.5,1627.3,0.11670114]
[1745322211406,7.37343372,1627.5,1627.3,0.11670114]
[1745322211615,1.22888245,1627.5,1627.3,0.11670114]
[1745322211774,6.14427318,1627.6,1627.3,0.11670114]
[1745322211974,6.14431451,1627.6,1627.3,0.11670114]
[1745322212211,6.1447708,1627.4,1627.3,0.11670114]
[1745322212511,6.9659708,1627.4,1627.3,0.11670114]
[1745322212682,6.9659708,1627.4,1627.0,6.14616527]
[1745322212870,6.1447708,1627.4,1627.3,0.12680213]
[1745322213077,13.10973015,1627.6,1627.2,6.1451532]
[1745322213311,6.96539647,1627.6,1627.3,0.12680213]
[1745322213477,6.14463838,1627.5,1627.3,0.12680213]
[1745322213684,6.1447708,1627.4,1627.3,0.12680213]
[1745322213880,6.14574934,1627.2,1626.5,11.21826351]
[1745322214122,6.14574934,1627.2,1626.8,6.14680338]
[1745322214421,6.96639585,1627.3,1626.9,6.14665406]
[1745322214593,6.14554376,1627.2,1626.9,6.14665406]
[1745322215018,7.66303544,1627.3,1626.9,6.14643235]
[1745322215310,12.2901395,1627.4,1627.0,6.14612497]
[1745322215517,12.29007946,1627.4,1627.0,6.14612497]
[1745322215718,6.14500585,1627.4,1627.0,6.14612497]
[1745322215917,6.14526676,1627.3,1626.9,13.56872778]
[1745322216083,6.14526676,1627.3,1627.0,6.14614022]
[1745322216280,12.29007298,1627.4,1627.0,6.14614022]
[1745322216594,6.14500585,1627.4,1627.0,8.11757785]
[1745322217124,6.14500585,1627.4,1627.1,6.14584478]
[1745322217298,6.14500585,1627.4,1627.0,8.11752567]
[1745322217624,6.14525869,1627.3,1626.9,13.56971479]
[1745322217927,6.14570073,1627.2,1626.9,0.8093]
[1745322218422,6.14570073,1627.2,1626.8,18.9076166]
[1745322218715,6.14570073,1627.2,1626.8,12.76079929]
[1745322219286,6.14596398,1627.1,1626.8,12.76079929]
[1745322219690,6.14654453,1627.0,1626.6,6.14760837]
[1745322220019,6.14654453,1627.0,1626.6,6.14757903]
[1745322220185,6.14654453,1627.0,1626.7,6.14737712]
[1745322220480,6.14679758,1626.9,1626.5,9.9254386]
[1745322220686,1.99876647,1627.1,1626.4,0.3971835]
[1745322220894,6.14694686,1626.9,1626.5,12.29603626]
[1745322221189,6.14694686,1626.9,1626.4,6.54549066]
[1745322221406,6.14722556,1626.8,1626.4,6.54549066]
[1745322221626,6.14685279,1626.9,1626.5,6.14801113]
[1745322221827,12.29381012,1626.9,1626.5,6.14801113]
[1745322222207,6.14716095,1626.8,1626.4,12.69381637]
[1745322222707,6.14716095,1626.8,1626.4,12.6937946]
[1745322222909,6.14716095,1626.8,1626.5,6.14813344]
[1745322223228,1.09010569,1627.1,1626.9,6.14659093]
[1745322223539,0.32050569,1627.1,1626.8,6.14671325]
[1745322223701,6.46654169,1627.1,1626.7,6.14720527]
[1745322223901,6.46654169,1627.1,1626.7,6.14717345]
[1745322224103,7.72776398,1627.1,1626.7,6.14717345]
[1745322224324,7.72783085,1627.1,1626.6,0.7534]
[1745322224496,1.58172798,1627.1,1626.8,6.14683714]
[1745322224700,1.58172798,1627.1,1626.8,6.14681031]
[1745322225235,1.58172798,1627.1,1626.9,0.14219965]
[1745322226140,0.32050569,1627.1,1626.9,6.28866798]